bitfinex/quotes_ETHUSD_20240607
["timestamp","ask_amount","ask_price","bid_price","bid_amount"]
[1717727880935,15.91828935,3798.2,3797.4,0.791]
[1717727880936,2.63331,3797.5,3797.4,0.791]
[1717727881133,3.75255283,3797.5,3797.4,0.791]
[1717727881311,2.63374,3796.9,3796.6,2.3708]
[1717727881506,0.55,3796.8,3796.6,2.3708]
[1717727881734,2.13837982,3796.7,3796.6,2.3708]
[1717727881923,1.56905462,3796.8,3796.6,3.1618]
[1717727882124,1.56905462,3796.8,3796.6,0.791]
[1717727882344,1.56905462,3796.8,3796.5,2.2797]
[1717727882506,1.56905462,3796.8,3796.7,0.791]
[1717727883451,1.56905462,3796.8,3796.7,3.224]
[1717727883655,1.56907346,3796.9,3796.7,6.67765451]
[1717727883851,1.56907346,3797.1,3796.8,3.224]
[1717727884070,2.1384127,3797.2,3797.0,0.791]
[1717727884472,2.1384127,3797.2,3797.1,2.3971]
[1717727885508,2.1384127,3797.2,3797.1,2.71591]
[1717727885812,0.54333924,3797.2,3797.1,2.71591]
[1717727886101,1.56907346,3797.5,3797.1,5.34949]
[1717727886243,1.56907346,3797.5,3797.4,0.791]
[1717727886444,2.63314,3797.8,3797.1,5.34949]
[1717727886661,2.63314,3797.8,3797.7,0.791]
[1717727888581,2.63314,3797.8,3797.1,5.03068]
[1717727888783,2.63314,3797.8,3797.7,0.791]
[1717727890381,4.00219099,3797.8,3797.7,0.791]
[1717727892100,4.00219099,3797.8,3797.7,3.2424]
[1717727892766,1.36905099,3797.8,3797.7,3.2424]
[1717727892958,7.49,3798.4,3797.7,3.2424]
[1717727892959,1.36905099,3798.0,3797.7,6.19979]
[1717727893142,1.56933171,3797.8,3797.7,5.40879]
[1717727893405,1.56933171,3797.8,3797.7,6.19979]
[1717727893542,10.12273,3798.4,3797.7,6.19979]
[1717727893543,1.56933171,3798.1,3797.7,6.19979]
[1717727893746,1.56933171,3798.1,3798.0,0.791]
[1717727893947,1.56933171,3798.1,3798.0,3.2424]
[1717727894244,1.56933171,3798.2,3798.0,5.87531]
[1717727894490,1.56933171,3798.3,3798.1,0.791]
[1717727894793,1.56933171,3798.3,3798.2,0.791]
[1717727894999,1.56933171,3798.4,3798.2,0.791]
[1717727895177,1.56933171,3798.5,3798.3,0.791]
[1717727895342,1.56933171,3798.4,3798.3,0.36732361]
[1717727895541,1.56933171,3798.4,3798.3,0.791]
[1717727896345,1.56933171,3798.5,3798.3,0.791]
[1717727896546,1.56933171,3798.5,3798.4,0.791]
[1717727896787,3.5074872,3798.8,3798.4,0.791]
[1717727896986,2.13843621,3798.8,3798.6,0.791]
[1717727897163,11.69169171,3798.9,3798.6,0.791]
[1717727897497,10.12236,3798.9,3798.8,0.791]
[1717727897795,10.69141802,3798.9,3798.8,0.791]
[1717727897948,8.05905802,3798.9,3798.8,0.791]
[1717727898250,9.62868396,3798.9,3798.8,0.791]
[1717727898452,7.49,3798.9,3798.8,3.0452]
[1717727900349,1.56964765,3799.1,3798.8,3.0452]
[1717727900555,1.56964765,3799.1,3799.0,0.791]
[1717727901175,2.63216,3799.2,3799.0,0.791]
[1717727901176,4.20180765,3799.2,3799.0,0.791]
[1717727902157,2.63216,3799.2,3799.0,0.791]
[1717727903094,2.63231,3799.0,3798.8,2.2542]
[1717727903254,2.63231,3799.0,3798.4,2.3916]
[1717727903653,2.63231,3799.0,3798.9,0.791]
[1717727905161,2.63244,3798.8,3798.4,2.3916]
[1717727905388,2.63244,3798.8,3798.7,0.791]
[1717727905756,2.895684,3798.8,3798.7,0.791]
[1717727907398,2.63244,3798.8,3798.7,0.791]
[1717727907557,2.63244,3798.8,3798.4,2.3916]
[1717727907763,2.63244,3798.8,3798.7,0.791]
[1717727910404,2.63244,3798.8,3798.4,2.3916]
[1717727910696,2.63244,3798.8,3798.7,0.791]
[1717727910998,2.895684,3798.8,3798.7,0.791]
[1717727911367,2.63256,3798.6,3798.4,2.3916]
[1717727911574,2.63256,3798.6,3798.5,0.791]
[1717727912500,0.263244,3798.8,3798.5,0.791]
[1717727912800,2.63241,3798.8,3798.7,0.791]
[1717727915099,4.20201765,3798.9,3798.4,2.3916]
[1717727915302,4.20201765,3798.9,3798.7,0.791]
[1717727915602,1.56964765,3799.0,3798.7,0.791]
[1717727915765,1.56964765,3799.0,3798.9,0.791]
[1717727915966,1.6153366,3799.3,3798.9,0.791]
[1717727916162,1.6153366,3799.3,3798.8,2.4694]
[1717727916498,2.67774895,3799.3,3799.2,0.791]
[1717727916911,2.67774895,3799.3,3798.8,2.4694]
[1717727917211,2.67774895,3799.3,3799.2,0.791]
[1717727917530,2.63225,3799.1,3798.8,2.4694]
[1717727917813,2.63237,3798.9,3798.2,2.63278]
[1717727918119,4.20297796,3798.9,3798.8,0.791]
[1717727918577,2.63237,3798.9,3798.8,0.791]
[1717727918782,3.0526678,3798.9,3798.8,0.791]
[1717727919308,4.62327576,3798.9,3798.8,0.791]
[1717727919512,3.0526678,3798.9,3798.8,0.791]
[1717727920377,4.62327576,3798.9,3798.8,0.791]
[1717727921098,4.20297796,3798.9,3798.8,0.791]
[1717727921409,2.63237,3798.9,3798.8,0.791]
[1717727921588,4.20261219,3798.9,3798.8,0.791]
[1717727922176,2.63237,3798.9,3798.8,0.791]
[1717727922377,3.20140144,3798.9,3798.8,0.791]
[1717727922715,2.63237,3798.9,3798.8,0.791]
[1717727923212,0.56903144,3799.1,3798.8,0.791]
[1717727923421,0.56903144,3799.0,3798.4,2.63267]
[1717727923588,1.57025589,3798.7,3798.4,2.63267]
[1717727923919,1.57025589,3798.7,3798.6,0.791]
[1717727924281,1.57025589,3798.7,3798.6,3.0608]
[1717727925381,2.13928733,3798.7,3798.6,3.0608]
[1717727925587,1.57025589,3798.7,3798.6,2.2698]
[1717727925789,1.57025589,3798.7,3798.6,3.0608]
[1717727925987,1.57025589,3798.7,3798.6,3.630147]
[1717727927423,1.57025589,3798.9,3798.7,2.63247]
[1717727927626,1.57025589,3798.9,3798.8,0.791]
[1717727928070,0.04568895,3799.3,3798.7,2.63247]
[1717727928071,0.56903144,3799.0,3798.7,2.63247]
[1717727928333,0.56903144,3798.9,3798.8,0.791]
[1717727929499,0.56903144,3799.0,3798.8,0.791]
[1717727929833,0.56903144,3798.9,3798.6,2.2698]
[1717727930001,2.13934007,3798.8,3798.6,4.90228]
[1717727930202,1.57030863,3798.8,3798.7,0.791]
[1717727935333,1.57030863,3798.8,3798.6,4.90228]
[1717727935550,1.57030863,3798.8,3798.7,0.791]
[1717727940194,2.13934007,3798.8,3798.7,0.791]
[1717727940507,1.57030863,3798.8,3798.7,0.791]
[1717727941373,1.57030863,3798.8,3798.3,2.6327]
[1717727941695,1.57030863,3798.8,3798.7,0.791]
[1717727941859,1.93963457,3798.8,3798.7,0.791]
[1717727942988,0.56903144,3798.8,3798.7,0.791]
[1717727944731,0.56903144,3798.8,3798.7,3.1881]
[1717727945036,2.14013214,3798.8,3798.7,2.979171]
[1717727945314,0.56903144,3798.8,3798.7,0.791]
[1717727945532,0.56903144,3798.8,3798.5,2.63261]
[1717727945679,2.14004448,3798.7,3798.2,4.94825]
[1717727945878,1.57102643,3798.5,3798.2,4.94825]
[1717727946079,1.57102643,3798.5,3798.4,0.791]
[1717727946332,2.14008803,3798.5,3798.4,0.791]
[1717727946579,1.57102643,3798.5,3798.4,3.42368]
[1717727947226,2.14008803,3798.5,3798.4,3.42368]
[1717727947442,1.57102643,3798.5,3798.4,3.42368]
[1717727947880,2.14008803,3798.5,3798.4,3.42368]
[1717727948079,1.57102643,3798.5,3798.4,3.42368]
[1717727948533,2.14008803,3798.5,3798.4,2.63268]
[1717727948685,1.57102643,3798.5,3798.4,3.42368]
[1717727949425,2.14008803,3798.5,3798.4,3.42368]
[1717727949584,1.57102643,3798.5,3798.4,3.42368]
[1717727950130,2.14008803,3798.5,3798.4,3.42368]
[1717727950330,1.57102643,3798.6,3798.4,3.42368]
[1717727950539,0.5690616,3798.5,3798.4,2.63268]
[1717727950720,0.5690616,3798.5,3798.4,3.42368]
[1717727951499,0.5690616,3798.5,3798.2,2.3155]
[1717727951708,2.14008803,3798.5,3798.4,0.791]
[1717727952097,0.5690616,3798.5,3798.4,0.791]
[1717727952923,0.5690616,3798.5,3798.1,2.63284]
[1717727953239,0.5690616,3798.5,3798.4,0.791]
[1717727953410,0.56908609,3798.5,3798.4,0.791]
[1717727954848,1.37060313,3798.6,3798.4,0.791]
[1717727955142,0.56910265,3798.5,3798.4,0.791]
[1717727956109,0.56909242,3798.5,3798.4,0.791]
[1717727956940,1.57072688,3798.5,3798.4,0.791]
[1717727958385,2.1398193,3798.5,3798.4,0.791]
[1717727958551,1.57072688,3798.5,3798.4,0.791]
[1717727958755,2.1398193,3798.5,3798.4,0.791]
[1717727958953,1.57072688,3798.5,3798.4,0.791]
[1717727960865,2.1398193,3798.5,3798.4,0.791]
[1717727961175,1.57072688,3798.5,3798.4,0.791]
[1717727961379,1.57072688,3798.6,3798.5,2.63261]
[1717727961539,1.57072688,3798.7,3798.5,2.63261]
[1717727961875,2.1398193,3798.7,3798.6,0.791]
[1717727962078,1.57072688,3798.7,3798.6,0.791]
[1717727962763,2.1398193,3798.8,3798.6,0.791]
[1717727963264,1.57072688,3798.7,3798.6,0.791]
[1717727965250,1.57072688,3798.7,3798.4,2.3566]
[1717727965439,0.56909242,3798.7,3798.6,0.791]
[1717727965639,0.56909242,3798.8,3798.6,0.791]
[1717727965844,1.94156549,3798.8,3798.7,0.791]
[1717727966043,1.94153012,3798.8,3798.2,2.63276]
[1717727966243,1.57054968,3798.5,3798.2,2.63276]
[1717727966444,1.57054968,3798.5,3798.4,0.791]
[1717727966890,0.56905705,3798.5,3798.4,0.791]
[1717727968477,0.56908816,3798.5,3798.4,0.791]
[1717727968671,0.56908816,3798.5,3798.2,2.63276]
[1717727968883,4.00496307,3798.7,3798.4,0.791]
[1717727969047,0.56908821,3798.6,3798.2,2.63276]
[1717727969247,1.57056603,3798.4,3798.2,2.63276]
[1717727969522,1.57056603,3798.4,3798.3,0.791]
[1717727969792,2.13965424,3798.4,3798.3,0.791]
[1717727969946,1.57056603,3798.4,3798.3,0.791]
[1717727970342,1.57056603,3798.4,3798.1,2.3428]
[1717727970547,2.13963813,3798.4,3798.3,0.791]
[1717727970760,1.57054999,3798.4,3798.3,0.791]
[1717727971187,2.13963813,3798.4,3798.3,0.791]
[1717727971387,1.57054999,3798.4,3798.3,0.791]
[1717727971759,0.56908814,3798.5,3798.3,0.791]
[1717727971963,2.13961672,3798.4,3798.1,2.63289]
[1717727972190,1.57052858,3798.4,3798.3,0.791]
[1717727972484,2.13961672,3798.4,3798.3,0.791]
[1717727972860,1.57052858,3798.4,3798.3,0.791]
[1717727973173,2.13961672,3798.4,3798.3,0.791]
[1717727973356,1.57052858,3798.4,3798.3,0.791]
[1717727973563,2.13961672,3798.4,3798.3,0.791]
[1717727974087,1.57052858,3798.4,3798.3,0.791]
[1717727974687,2.13961672,3798.4,3798.3,0.791]
[1717727974990,1.57047606,3798.4,3798.3,0.791]
[1717727975344,0.5690909,3798.4,3798.3,0.791]
[1717727975549,0.5690909,3798.6,3798.3,0.791]
[1717727975849,0.5690909,3798.6,3798.5,0.791]
[1717727976047,0.56909313,3798.6,3798.5,0.791]
[1717727976481,1.94134475,3798.6,3798.5,0.791]
[1717727977400,0.56909313,3798.6,3798.5,0.791]
[1717727979505,1.94134475,3798.6,3798.5,0.791]
[1717727979850,0.56909313,3798.6,3798.5,0.791]
[1717727986798,0.56907592,3798.6,3798.5,0.791]
[1717727987162,0.56907592,3798.6,3798.2,2.63279]
[1717727987357,1.57050816,3798.4,3798.2,2.63279]
[1717727987555,2.13958408,3798.4,3798.3,0.791]
[1717727988006,1.57050816,3798.4,3798.3,0.791]
[1717727988208,2.13958408,3798.4,3798.3,0.791]
[1717727988361,1.57050816,3798.4,3798.3,0.791]
[1717727988562,2.13958408,3798.4,3798.3,0.791]
[1717727988888,1.57050816,3798.4,3798.3,0.791]
[1717727989581,2.13958408,3798.4,3798.3,0.791]
[1717727989778,0.56907592,3798.5,3798.3,0.791]
[1717727989992,0.56907592,3798.4,3798.2,2.63279]
[1717727990187,1.57061797,3798.3,3798.2,2.63279]
[1717727990510,1.57062073,3798.4,3798.2,3.42379]
[1717727990807,2.13969665,3798.4,3798.3,0.791]
[1717727990966,1.57062073,3798.4,3798.3,0.791]
[1717727991367,2.13969665,3798.4,3798.3,0.791]
[1717727991677,1.57062073,3798.4,3798.3,0.791]
[1717727992063,2.13969665,3798.4,3798.3,0.791]
[1717727992264,1.57062073,3798.4,3798.3,0.791]
[1717727992463,2.13969665,3798.4,3798.3,0.791]
[1717727992684,1.57062073,3798.4,3798.3,0.791]
[1717727992899,0.56907592,3798.4,3798.3,0.791]
[1717727993810,2.63283,3798.2,3797.6,2.63322]
[1717727994008,1.57044495,3797.9,3797.6,2.63322]
[1717727994209,1.37302748,3798.0,3797.8,0.791]
[1717727994507,0.56917645,3797.9,3797.6,2.63322]
[1717727994695,2.13955051,3797.8,3797.6,2.63322]
[1717727994899,2.13955051,3797.8,3797.7,0.791]
[1717727995232,1.57037406,3797.8,3797.7,0.791]
[1717727997299,1.57037406,3797.9,3797.7,0.791]
[1717727997623,1.57037406,3797.9,3797.4,2.4237]
[1717727997818,1.57037406,3797.9,3797.8,0.791]
[1717728000424,1.57037406,3797.9,3797.4,2.4237]
[1717728000711,1.57037406,3797.9,3797.8,0.791]
[1717728000917,0.61912447,3797.9,3797.8,0.791]
[1717728001611,2.1896406,3797.9,3797.8,0.791]
[1717728001800,2.6331,3797.8,3797.1,2.3896]
[1717728001971,2.63325,3797.6,3797.1,2.3896]
[1717728002412,2.63325,3797.6,3797.5,0.791]
[1717728002413,4.20375878,3797.6,3797.5,0.791]
[1717728002621,2.63325,3797.6,3797.5,0.791]
[1717728002807,3.5386851,3797.6,3797.5,0.791]
[1717728003112,5.10912133,3797.6,3797.5,0.791]
[1717728003315,2.63325,3797.6,3797.5,0.791]
[1717728003884,4.20368623,3797.6,3797.5,0.791]
[1717728004123,2.63325,3797.6,3797.5,0.791]
[1717728006231,1.57043623,3797.7,3797.5,0.791]
[1717728006887,4.20361623,3797.7,3797.1,2.3896]
[1717728007215,4.20361623,3797.7,3797.6,0.791]
[1717728007524,3.24756596,3797.7,3797.6,0.791]
[1717728011431,2.63318,3797.7,3797.6,0.791]
[1717728011822,1.57048238,3798.1,3797.7,2.2674]
[1717728012183,4.20329238,3798.3,3798.0,0.791]
[1717728012430,0.47724687,3798.2,3797.7,2.2674]
[1717728012728,4.20329238,3798.3,3798.2,0.791]
[1717728012936,4.20329238,3798.3,3797.8,2.63305]
[1717728013388,4.20329238,3798.3,3798.2,0.791]
[1717728013589,2.63291,3798.1,3797.7,2.2674]
[1717728013836,2.63291,3798.1,3798.0,0.791]
[1717728014047,3.05324924,3798.1,3798.0,0.791]
[1717728014517,4.62373162,3798.1,3798.0,0.791]
[1717728014835,4.62373162,3798.1,3797.5,2.63327]
[1717728014989,4.62373162,3798.1,3798.0,0.791]
[1717728015390,3.05324924,3798.1,3798.0,0.791]
[1717728016041,2.63312,3797.8,3797.4,2.408]
[1717728016221,2.63312,3797.8,3797.7,0.791]
[1717728016530,4.20363539,3797.8,3797.2,4.88776]
[1717728016748,4.20357048,3797.8,3797.7,0.791]
[1717728016898,2.63342,3797.4,3796.6,2.2543]
[1717728017320,2.63342,3797.4,3797.3,0.791]
[1717728017523,3.18342,3797.4,3797.3,0.791]
[1717728017726,4.05697412,3797.4,3797.3,0.791]
[1717728017930,3.50697412,3797.4,3797.3,0.791]
[1717728018326,5.07733691,3797.4,3797.3,0.791]
[1717728018638,5.07733691,3797.4,3796.6,2.2543]
[1717728018801,4.20378279,3797.4,3797.3,0.791]
[1717728019002,2.63342,3797.4,3797.3,0.791]
[1717728021713,2.63342,3797.4,3796.6,2.2543]
[1717728021897,2.63355,3797.2,3796.6,2.2543]
[1717728022098,4.20378454,3797.2,3797.1,0.791]
[1717728022294,2.63355,3797.2,3797.1,0.791]
[1717728023455,2.63374,3796.9,3796.4,2.33996509]
[1717728023627,2.63374,3796.9,3796.8,0.791]
[1717728023807,4.2038657,3796.9,3796.8,0.791]
[1717728024329,2.63374,3796.9,3796.8,0.791]
[1717728024730,1.5701257,3797.0,3796.8,3.2662]
[1717728024897,4.2036757,3797.2,3796.8,3.2662]
[1717728025101,4.2036757,3797.2,3796.8,2.4752]
[1717728025346,4.2036757,3797.2,3797.1,0.791]
[1717728025905,2.63355,3797.2,3797.1,0.791]
[1717728027509,4.20375449,3797.2,3797.1,0.791]
[1717728028723,1.57020449,3797.2,3797.1,0.791]
[1717728030228,2.63339,3797.4,3797.1,0.791]
[1717728030229,1.57020449,3797.3,3797.1,0.791]
[1717728030441,4.20371449,3797.2,3796.8,2.4752]
[1717728030637,4.20371449,3797.2,3797.1,0.791]
[1717728031049,2.63351,3797.2,3797.1,0.791]
[1717728031460,2.63351,3797.2,3797.1,0.81829796]
[1717728035122,2.67919951,3797.2,3797.1,0.81829796]
[1717728035462,2.67919951,3797.2,3797.1,0.791]
[1717728035757,2.67919951,3797.2,3797.1,0.82024773]
[1717728038353,2.63372,3797.0,3796.6,2.4752]
[1717728038527,2.63372,3797.0,3796.9,0.791]
[1717728038724,2.63372,3797.0,3796.9,0.81929723]
[1717728039468,4.20388517,3797.0,3796.9,0.81929723]
[1717728039769,4.20388517,3797.0,3796.9,0.02829723]
[1717728039932,2.63387,3796.7,3796.4,2.33996509]
[1717728040128,2.63387,3796.7,3796.6,0.791]
[1717728040572,2.63387,3796.7,3796.6,0.81929723]
[1717728040933,2.63371,3797.0,3796.6,0.81929723]
[1717728041247,2.63371,3797.0,3796.9,0.791]
[1717728041640,2.63371,3797.0,3796.9,0.81929723]
[1717728042243,4.20387744,3797.0,3796.9,0.02829723]
[1717728042451,9.91267584,3797.0,3796.9,0.02829723]
[1717728042653,2.634,3796.5,3796.4,2.33996509]
[1717728043053,4.5729126,3796.5,3796.4,2.33996509]
[1717728043336,10.0006995,3796.5,3796.4,2.33996509]
[1717728043537,11.88672734,3796.5,3796.4,2.33996509]
[1717728043842,9.25272734,3796.5,3796.4,2.33996509]
[1717728044187,14.2557365,3796.5,3796.4,2.33996509]
[1717728044492,4.92666,3795.7,3795.6,0.1267302]
[1717728044645,6.99792577,3795.7,3795.6,0.1267302]
[1717728044856,8.11748005,3795.7,3795.6,0.1267302]
[1717728045197,16.90650736,3795.7,3795.0,0.791]
[1717728045365,16.90650736,3795.7,3794.3,0.791]
[1717728045366,2.63528,3794.7,3794.3,0.791]
[1717728045567,2.63528,3794.7,3793.5,2.63602]
[1717728045793,2.63528,3794.7,3794.6,0.791]
[1717728046168,2.898808,3794.7,3793.5,2.63602]
[1717728046369,2.898808,3794.7,3794.5,0.791]
[1717728046698,2.63528,3794.7,3793.6,0.02652534]
[1717728046888,2.63528,3794.7,3794.5,0.791]
[1717728047069,0.263528,3794.6,3794.5,0.791]
[1717728047477,7.49,3795.1,3794.5,0.791]
[1717728047676,19.7,3795.5,3795.0,0.791]
[1717728047989,4.20225359,3795.6,3794.8,1.901]
[1717728048296,0.51781562,3795.5,3794.8,1.901]
[1717728049100,2.63465,3795.6,3794.8,1.901]
[1717728050619,2.63465,3795.6,3795.2,1.901]
[1717728051663,2.63465,3795.6,3795.3,0.02652534]
[1717728052085,2.63465,3795.6,3795.2,1.901]
[1717728052409,2.63465,3795.6,3795.3,0.02652534]
[1717728053548,10.12442,3795.9,3795.3,0.02652534]
[1717728053662,10.12442,3795.9,3795.8,1.901]
[1717728053867,3.646862,3795.9,3795.8,1.61814377]
[1717728054166,2.63442,3795.9,3795.8,1.61814377]
[1717728055165,2.63442,3795.9,3795.0,4.99781]
[1717728055504,2.63442,3795.9,3795.8,0.02652534]
[1717728055505,2.68012732,3795.9,3795.8,0.02652534]
[1717728056003,2.63012732,3795.9,3795.5,1.901]
[1717728056217,2.63012732,3795.9,3795.8,0.02654228]
[1717728056426,2.63012732,3795.9,3795.5,1.901]
[1717728056796,2.63012732,3795.9,3795.6,0.02654228]
[1717728060728,0.04570732,3795.9,3795.6,0.02654228]
[1717728062027,2.63423,3796.2,3795.6,0.02654228]
[1717728062183,2.63423,3796.2,3796.0,1.901]
[1717728062386,7.49,3796.4,3796.0,1.901]
[1717728062610,9.46456983,3796.4,3796.0,1.901]
[1717728062826,7.49,3796.4,3796.0,1.901]
[1717728063253,7.49,3796.4,3796.1,0.02654228]
[1717728063788,0.04569834,3796.5,3796.1,0.02654228]
[1717728063934,0.04569834,3796.5,3796.4,1.901]
[1717728064334,0.04569834,3796.5,3796.4,1.92754228]
[1717728064568,7.49,3797.0,3796.4,1.92754228]
[1717728064773,0.04569118,3796.7,3796.4,1.901]
[1717728065168,0.04569118,3796.7,3796.5,0.02654228]
[1717728066577,2.63377,3796.9,3796.5,0.02654228]
[1717728066938,2.67922563,3797.2,3796.4,4.53504]
[1717728067142,2.67922563,3797.2,3796.8,1.901]
[1717728067761,0.04569563,3797.2,3796.8,1.901]
[1717728068001,0.04569563,3797.2,3796.9,0.02610159]
[1717728069361,0.04569563,3797.2,3796.8,1.901]
[1717728070364,0.04569563,3797.2,3796.9,0.02610159]
[1717728072306,1.06261519,3797.2,3796.9,0.02610159]
[1717728072466,2.63358,3797.1,3796.9,0.02610159]
[1717728073415,3.34481519,3797.2,3795.9,2.2761]
[1717728073416,0.55,3797.0,3796.1,1.901]
[1717728073568,3.55,3797.1,3796.1,1.901]
[1717728073767,3.55,3797.1,3796.2,0.02604397]
[1717728073768,2.6341,3796.4,3796.2,0.02604397]
[1717728073963,2.6341,3796.4,3796.1,1.901]
[1717728074213,2.6341,3796.4,3796.3,0.02604736]
[1717728074392,2.6341,3796.4,3796.1,1.901]
[1717728074596,2.6341,3796.4,3796.3,0.02604736]
[1717728074783,2.6341,3796.4,3796.1,1.901]
[1717728074986,2.6341,3796.4,3796.3,0.02604736]
[1717728075203,2.6341,3796.4,3796.1,1.901]
[1717728075423,2.6341,3796.4,3796.3,0.02605075]
[1717728075585,2.6339,3796.7,3796.2,1.92722362]
[1717728075790,2.6339,3796.7,3796.3,0.02622023]
[1717728076413,2.63402,3796.5,3796.3,0.02622023]
[1717728082012,2.63402,3796.5,3796.4,0.791]
[1717728082520,2.63402,3796.5,3796.4,0.81728122]
[1717728085521,3.25565953,3796.8,3796.4,0.81728122]
[1717728085826,0.27609572,3796.7,3796.0,2.63433]
[1717728086028,0.27609572,3796.7,3796.6,0.791]
[1717728086524,0.27609572,3796.7,3796.6,0.81728122]
[1717728086720,3.25565953,3796.8,3796.6,0.81728122]
[1717728086924,0.62180953,3796.8,3796.6,0.81728122]
[1717728087233,0.62180953,3796.8,3796.6,0.791]
[1717728088091,0.62180953,3796.8,3796.7,0.791]
[1717728088326,0.66750896,3796.8,3796.7,0.791]
[1717728088695,1.98877473,3796.8,3795.8,2.63447]
[1717728088921,2.11316576,3796.7,3796.0,2.63433]
[1717728089229,2.11316576,3796.7,3796.6,0.791]
[1717728089429,0.54398016,3796.7,3796.6,0.791]
[1717728089882,2.23669456,3796.8,3796.6,0.81719987]
[1717728090189,4.87052456,3796.8,3796.6,0.791]
[1717728091219,1.32126577,3796.7,3795.6,4.95212]
[1717728091524,1.5691856,3796.5,3795.6,4.95212]
[1717728091697,4.68898163,3796.5,3796.4,0.791]
[1717728092045,2.60498163,3796.5,3795.7,0.02619988]
[1717728092188,1.5691856,3796.5,3796.4,0.791]
[1717728092388,1.5691856,3796.6,3796.4,0.791]
[1717728092626,4.2031156,3796.6,3796.5,0.791]
[1717728092836,5.49611476,3796.6,3796.5,0.791]
[1717728095035,5.49611476,3796.6,3795.8,2.63449]
[1717728095329,2.63423,3796.2,3795.6,2.3175]
[1717728095529,2.63423,3796.2,3796.1,0.791]
[1717728095714,3.05457156,3796.2,3796.1,0.791]
[1717728096034,3.05457156,3796.2,3796.1,0.81722699]
[1717728098140,0.42034156,3796.2,3796.1,0.81722699]
[1717728098321,4.7726126,3796.5,3796.1,0.81722699]
[1717728098538,4.77213112,3796.5,3796.4,0.791]
[1717728098701,4.20276412,3796.5,3796.4,0.791]
[1717728099038,4.77221157,3796.5,3796.4,0.791]
[1717728099396,4.2027626,3796.5,3796.4,0.791]
[1717728099599,5.01284452,3796.5,3796.4,0.791]
[1717728099834,5.58229349,3796.5,3796.4,0.791]
[1717728100343,3.44414192,3796.5,3796.4,0.791]
[1717728100537,4.01359036,3796.5,3796.4,0.791]
[1717728101634,0.56944844,3796.5,3796.4,0.791]
[1717728102007,1.56898912,3796.6,3796.4,0.791]
[1717728103421,1.56898912,3796.6,3796.5,0.791]
[1717728103651,1.56898912,3796.6,3796.5,0.81731513]
[1717728104992,4.00270605,3796.6,3796.5,0.81731513]
[1717728105272,5.21349144,3796.6,3796.5,0.81731513]
[1717728105445,3.84471539,3796.6,3796.5,0.81731513]
[1717728105650,1.21078539,3796.6,3795.6,2.4739]
[1717728105897,1.56920422,3796.2,3795.6,2.4739]
[1717728106203,1.56920422,3796.2,3796.1,0.791]
[1717728106338,1.56920422,3796.3,3796.1,0.81730835]
[1717728106533,1.56920422,3796.3,3796.1,0.791]
[1717728106835,2.63422,3796.2,3796.1,0.791]
[1717728107277,1.56920422,3796.3,3796.1,0.81730835]
[1717728107488,3.95547577,3796.2,3796.1,0.02630835]
[1717728107634,2.63441,3796.0,3795.9,0.791]
[1717728107834,5.5739253,3796.0,3795.9,0.791]
[1717728108091,5.01651196,3796.0,3795.9,0.791]
[1717728110342,6.58597992,3796.0,3795.9,0.791]
[1717728110851,5.2158871,3796.0,3795.9,0.791]
[1717728111236,1.56946796,3796.0,3795.6,2.3557]
[1717728111443,2.98527607,3796.1,3795.9,0.791]
[1717728111760,1.61518325,3796.1,3795.9,0.791]
[1717728112443,0.04571529,3796.1,3795.9,0.791]
[1717728112783,0.04571529,3796.1,3796.0,0.02645414]
[1717728116785,0.04571529,3796.1,3795.9,0.791]
[1717728117281,1.41533814,3796.1,3795.9,0.791]
[1717728118494,0.04571529,3796.1,3795.9,0.791]
[1717728118716,0.04571529,3796.1,3795.7,2.63452]
[1717728118856,0.04571529,3796.1,3796.0,0.791]
[1717728123360,0.04571529,3796.1,3795.7,2.63452]
[1717728123562,0.04571529,3796.1,3796.0,0.791]
[1717728123908,1.41533814,3796.1,3796.0,0.791]
[1717728124554,4.35272689,3796.1,3795.4,2.63471]
[1717728124754,5.57350605,3796.0,3795.9,0.791]
[1717728125008,2.63435,3796.0,3795.4,2.63471]
[1717728125212,1.37084254,3795.9,3795.5,0.02653551]
[1717728125499,1.37084254,3795.9,3795.7,0.791]
[1717728125500,2.94066714,3795.9,3795.7,0.791]
[1717728125683,2.63449,3795.8,3795.5,0.02653551]
[1717728125874,3.48878724,3795.8,3795.7,0.791]
[1717728127204,3.48878724,3795.8,3795.1,2.63491]
[1717728127365,3.48878724,3795.8,3795.7,0.791]
[1717728128841,2.58449,3795.8,3795.7,0.791]
[1717728130368,2.94058394,3795.9,3795.7,0.791]
[1717728130679,2.94058394,3795.9,3795.3,2.63483]
[1717728130883,2.94058394,3795.9,3795.7,0.791]
[1717728131568,5.57505394,3795.9,3795.3,2.63483]
[1717728131768,5.57505394,3795.9,3795.8,0.791]
[1717728133005,2.63447,3795.9,3795.8,0.791]
[1717728133209,5.57463083,3795.9,3795.6,0.791]
[1717728134270,1.56977163,3795.8,3795.6,0.791]
[1717728134601,1.56977163,3795.8,3795.7,0.02677287]
[1717728134809,1.56977163,3795.8,3795.6,0.791]
[1717728135134,1.56977163,3795.8,3795.7,0.02677287]
[1717728135474,1.56977163,3795.8,3795.6,0.791]
[1717728135995,1.56977163,3795.8,3795.7,0.02678643]
[1717728136197,1.56977163,3795.8,3795.6,0.791]
[1717728136415,1.56977163,3795.8,3795.7,0.02678643]
[1717728136566,1.56977163,3795.8,3795.6,0.791]
[1717728136765,1.56977163,3795.8,3795.7,0.02678304]
[1717728137418,1.3703892,3795.8,3795.7,0.791]
[1717728137705,1.3703892,3795.8,3795.7,0.81778304]
[1717728138116,2.63447,3795.9,3795.7,0.81778304]